[Event "Late-Titled-Tuesday-Blitz-July-09-2024"]
[Site "Chess.com"]
[Date "2024.07.09"]
[Round "6"]
[White "NovoselovRoman"]
[Black "bubeliang"]
[Result "0-1"]
[WhiteElo "2567"]
[BlackElo "2800"]
[TimeControl "180+1"]
[EndTime "15:06:10 PDT"]
[Termination "bubeliang won by checkmate"]

1. e4 {[%clk 0:03:00.9]} 1... c6 {[%clk 0:02:58.3]} 2. d4 {[%clk 0:03:00.6]}
2... d5 {[%clk 0:02:59.2]} 3. Nc3 {[%clk 0:03:01.1]} 3... dxe4 {[%clk
0:02:59.3]} 4. Nxe4 {[%clk 0:03:02]} 4... Nf6 {[%clk 0:03:00]} 5. Ng3 {[%clk
0:03:01.7]} 5... e5 {[%clk 0:02:57.1]} 6. Be3 {[%clk 0:02:56.6]} 6... Ng4 {[%clk
0:02:54.3]} 7. Nf3 {[%clk 0:02:55.5]} 7... Nxe3 {[%clk 0:02:53.4]} 8. fxe3
{[%clk 0:02:54.4]} 8... exd4 {[%clk 0:02:51.9]} 9. exd4 {[%clk 0:02:54.2]} 9...
Bd6 {[%clk 0:02:50.3]} 10. Bc4 {[%clk 0:02:53.3]} 10... O-O {[%clk 0:02:36.8]}
11. O-O {[%clk 0:02:51.9]} 11... Bg4 {[%clk 0:02:35.8]} 12. Qd3 {[%clk
0:02:43.3]} 12... Bxg3 {[%clk 0:02:29.8]} 13. hxg3 {[%clk 0:02:42.9]} 13... Nd7
{[%clk 0:02:29.4]} 14. Rae1 {[%clk 0:02:41.4]} 14... b5 {[%clk 0:01:41.3]} 15.
Bb3 {[%clk 0:02:41]} 15... c5 {[%clk 0:01:41.6]} 16. dxc5 {[%clk 0:02:28.5]}
16... Nxc5 {[%clk 0:01:28]} 17. Qxb5 {[%clk 0:02:28]} 17... Nxb3 {[%clk
0:01:25.5]} 18. axb3 {[%clk 0:02:27.4]} 18... Rb8 {[%clk 0:01:24.1]} 19. Qa4
{[%clk 0:02:25.1]} 19... Bxf3 {[%clk 0:01:18.8]} 20. Rxf3 {[%clk 0:02:22.8]}
20... Qd2 {[%clk 0:01:16.2]} 21. Qe4 {[%clk 0:02:16.6]} 21... Rbc8 {[%clk
0:01:15.1]} 22. Rf2 {[%clk 0:02:16.1]} 22... Qd6 {[%clk 0:01:12.7]} 23. Rf3
{[%clk 0:02:05.1]} 23... Qc5+ {[%clk 0:01:06]} 24. Rf2 {[%clk 0:02:02.3]} 24...
g6 {[%clk 0:01:05.5]} 25. Rf1 {[%clk 0:01:53.8]} 25... Rce8 {[%clk 0:01:01.3]}
26. Qc4 {[%clk 0:01:43.4]} 26... Qe3 {[%clk 0:00:57.5]} 27. Kh2 {[%clk 0:01:39]}
27... Re5 {[%clk 0:00:56.6]} 28. Qf4 {[%clk 0:01:33.8]} 28... Qc5 {[%clk
0:00:46.9]} 29. g4 {[%clk 0:01:27.6]} 29... h5 {[%clk 0:00:34.9]} 30. b4 {[%clk
0:01:25.1]} 30... Qe7 {[%clk 0:00:34.4]} 31. gxh5 {[%clk 0:01:06.9]} 31... Rxh5+
{[%clk 0:00:35.3]} 32. Kg1 {[%clk 0:01:07.5]} 32... Rh4 {[%clk 0:00:35.2]} 33.
Qf6 {[%clk 0:01:07.6]} 33... Qxf6 {[%clk 0:00:26.2]} 34. Rxf6 {[%clk 0:01:08.5]}
34... Rxb4 {[%clk 0:00:26.6]} 35. b3 {[%clk 0:01:09.2]} 35... Rb7 {[%clk
0:00:24.6]} 36. Rc6 {[%clk 0:01:06.9]} 36... Rd7 {[%clk 0:00:24.1]} 37. Rf4
{[%clk 0:01:06.3]} 37... Re8 {[%clk 0:00:23.4]} 38. Ra4 {[%clk 0:01:03.6]} 38...
Re2 {[%clk 0:00:22.4]} 39. Rc3 {[%clk 0:00:29.1]} 39... Rdd2 {[%clk 0:00:21.1]}
40. Rg3 {[%clk 0:00:29.6]} 40... Re7 {[%clk 0:00:15.8]} 41. c3 {[%clk
0:00:26.9]} 41... Rb2 {[%clk 0:00:14.9]} 42. b4 {[%clk 0:00:26.5]} 42... Rc7
{[%clk 0:00:14.1]} 43. Ra5 {[%clk 0:00:24.2]} 43... Rb3 {[%clk 0:00:12.2]} 44.
Kf2 {[%clk 0:00:22.7]} 44... Kg7 {[%clk 0:00:10.6]} 45. Ke2 {[%clk 0:00:22.4]}
45... Rd7 {[%clk 0:00:06.8]} 46. Rd3 {[%clk 0:00:21.4]} 46... Rb2+ {[%clk
0:00:06.3]} 47. Ke3 {[%clk 0:00:21.8]} 47... Re7+ {[%clk 0:00:06.7]} 48. Kd4
{[%clk 0:00:22.1]} 48... Rxg2 {[%clk 0:00:06.8]} 49. Kc4 {[%clk 0:00:20.3]}
49... f5 {[%clk 0:00:06.5]} 50. Ra6 {[%clk 0:00:19.2]} 50... f4 {[%clk
0:00:06.5]} 51. Rdd6 {[%clk 0:00:17.9]} 51... f3 {[%clk 0:00:05.3]} 52. Rf6
{[%clk 0:00:17.9]} 52... Rf7 {[%clk 0:00:05.8]} 53. Rxf7+ {[%clk 0:00:16]} 53...
Kxf7 {[%clk 0:00:06.7]} 54. Rxa7+ {[%clk 0:00:16.7]} 54... Kf6 {[%clk
0:00:07.1]} 55. Ra8 {[%clk 0:00:15.2]} 55... f2 {[%clk 0:00:03.7]} 56. Rf8+
{[%clk 0:00:15.3]} 56... Kg7 {[%clk 0:00:03.6]} 57. Rf3 {[%clk 0:00:14.3]} 57...
g5 {[%clk 0:00:04.1]} 58. b5 {[%clk 0:00:14.9]} 58... g4 {[%clk 0:00:04.6]} 59.
Rf4 {[%clk 0:00:15.5]} 59... g3 {[%clk 0:00:05]} 60. b6 {[%clk 0:00:16.1]} 60...
Rg1 {[%clk 0:00:05.3]} 61. Kc5 {[%clk 0:00:13.2]} 61... f1=Q {[%clk 0:00:05.3]}
62. Rxf1 {[%clk 0:00:12.6]} 62... Rxf1 {[%clk 0:00:06.2]} 63. c4 {[%clk
0:00:12.4]} 63... Rb1 {[%clk 0:00:06.7]} 64. Kc6 {[%clk 0:00:12.8]} 64... g2
{[%clk 0:00:07.4]} 65. c5 {[%clk 0:00:13.3]} 65... g1=Q {[%clk 0:00:08.1]} 66.
Kb7 {[%clk 0:00:13.8]} 66... Qxc5 {[%clk 0:00:08.1]} 67. Ka8 {[%clk 0:00:14.5]}
67... Rxb6 {[%clk 0:00:07.7]} 68. Ka7 {[%clk 0:00:15.4]} 68... Qa5# {[%clk
0:00:08.5]} 0-1

[Event "Late-Titled-Tuesday-Blitz-July-09-2024"]
[Site "Chess.com"]
[Date "2024.07.09"]
[Round "6"]
[White "LidongW"]
[Black "CapivaraBondoso"]
[Result "0-1"]
[WhiteElo "2270"]
[BlackElo "2138"]
[TimeControl "180+1"]
[EndTime "15:06:10 PDT"]
[Termination "CapivaraBondoso won on time"]

1. e4 {[%clk 0:02:58.3]} 1... c5 {[%clk 0:02:59.8]} 2. c3 {[%clk 0:02:57.8]}
2... Nf6 {[%clk 0:02:59.7]} 3. e5 {[%clk 0:02:57.5]} 3... Nd5 {[%clk 0:03:00.3]}
4. d4 {[%clk 0:02:55.4]} 4... cxd4 {[%clk 0:03:01.2]} 5. Nf3 {[%clk 0:02:54.4]}
5... d6 {[%clk 0:03:01.6]} 6. Bc4 {[%clk 0:02:52.4]} 6... Nb6 {[%clk 0:03:00.9]}
7. Bb3 {[%clk 0:02:52.9]} 7... Nc6 {[%clk 0:03:00.3]} 8. exd6 {[%clk 0:02:45.7]}
8... Qxd6 {[%clk 0:03:01.2]} 9. O-O {[%clk 0:02:44.4]} 9... g6 {[%clk
0:02:59.1]} 10. cxd4 {[%clk 0:02:38.9]} 10... Bg7 {[%clk 0:02:58.2]} 11. d5
{[%clk 0:02:38.7]} 11... Na5 {[%clk 0:02:56.9]} 12. Ba4+ {[%clk 0:02:21.7]}
12... Bd7 {[%clk 0:02:50.4]} 13. Bxd7+ {[%clk 0:02:21.1]} 13... Qxd7 {[%clk
0:02:51.3]} 14. Nc3 {[%clk 0:02:14.7]} 14... O-O {[%clk 0:02:49.9]} 15. Be3
{[%clk 0:01:54.1]} 15... Nac4 {[%clk 0:02:45.4]} 16. Bxb6 {[%clk 0:01:47.8]}
16... Nxb6 {[%clk 0:02:29.1]} 17. Rc1 {[%clk 0:01:36.3]} 17... Rad8 {[%clk
0:02:27.9]} 18. Re1 {[%clk 0:01:30.8]} 18... Rfe8 {[%clk 0:02:26.8]} 19. Ne5
{[%clk 0:01:29.5]} 19... Qf5 {[%clk 0:02:04.3]} 20. Qf3 {[%clk 0:01:10.7]} 20...
Qxf3 {[%clk 0:01:52.9]} 21. Nxf3 {[%clk 0:01:11.6]} 21... Bxc3 {[%clk
0:01:37.9]} 22. bxc3 {[%clk 0:01:11.8]} 22... Nxd5 {[%clk 0:01:37.4]} 23. c4
{[%clk 0:01:12.2]} 23... Nf4 {[%clk 0:01:24.2]} 24. Rb1 {[%clk 0:01:10]} 24...
b6 {[%clk 0:01:18.8]} 25. c5 {[%clk 0:01:08.2]} 25... Nd3 {[%clk 0:01:14.1]} 26.
Rec1 {[%clk 0:01:06.7]} 26... Nxc5 {[%clk 0:01:14]} 27. g3 {[%clk 0:01:03.2]}
27... e5 {[%clk 0:01:06.6]} 28. Kg2 {[%clk 0:01:02.7]} 28... e4 {[%clk
0:01:05.8]} 29. Ng5 {[%clk 0:01:01.5]} 29... h6 {[%clk 0:01:03.4]} 30. Nh3
{[%clk 0:01:01.3]} 30... Rd2 {[%clk 0:00:58.5]} 31. a3 {[%clk 0:00:55.7]} 31...
Red8 {[%clk 0:00:52.1]} 32. Kf1 {[%clk 0:00:40.5]} 32... Ra2 {[%clk 0:00:50.5]}
33. Rc3 {[%clk 0:00:37.4]} 33... Rdd2 {[%clk 0:00:48.6]} 34. Re1 {[%clk
0:00:35.1]} 34... Kg7 {[%clk 0:00:41.9]} 35. Rce3 {[%clk 0:00:32.7]} 35... f5
{[%clk 0:00:36.5]} 36. R3e2 {[%clk 0:00:25.5]} 36... Nd3 {[%clk 0:00:32]} 37.
Rxd2 {[%clk 0:00:23.1]} 37... Rxd2 {[%clk 0:00:31.6]} 38. Rb1 {[%clk 0:00:20.6]}
38... Ra2 {[%clk 0:00:30.6]} 39. Rb3 {[%clk 0:00:20]} 39... Nc5 {[%clk
0:00:28.6]} 40. Rc3 {[%clk 0:00:19.8]} 40... Kf6 {[%clk 0:00:26]} 41. Nf4 {[%clk
0:00:18.7]} 41... Rd2 {[%clk 0:00:20.6]} 42. Ke1 {[%clk 0:00:16.6]} 42... Rd6
{[%clk 0:00:17.5]} 43. Ke2 {[%clk 0:00:15.6]} 43... g5 {[%clk 0:00:16.8]} 44.
Ng2 {[%clk 0:00:15.9]} 44... Ke5 {[%clk 0:00:17]} 45. Ne3 {[%clk 0:00:15.8]}
45... Rd3 {[%clk 0:00:11.9]} 46. Rc2 {[%clk 0:00:12.2]} 46... f4 {[%clk
0:00:09.2]} 47. Nc4+ {[%clk 0:00:12.2]} 47... Kd4 {[%clk 0:00:07.7]} 48. gxf4
{[%clk 0:00:10.5]} 48... gxf4 {[%clk 0:00:07.2]} 49. Nd6 {[%clk 0:00:11.1]}
49... f3+ {[%clk 0:00:06.8]} 50. Ke1 {[%clk 0:00:10.6]} 50... Rxa3 {[%clk
0:00:06.7]} 51. Nb5+ {[%clk 0:00:10.3]} 51... Kd3 {[%clk 0:00:07.2]} 52. Nxa3
{[%clk 0:00:11.2]} 52... Nb3 {[%clk 0:00:06.3]} 53. Rc7 {[%clk 0:00:08.9]} 53...
a5 {[%clk 0:00:05]} 54. Rb7 {[%clk 0:00:08]} 54... b5 {[%clk 0:00:03.3]} 55.
Rxb5 {[%clk 0:00:07.8]} 55... Nd4 {[%clk 0:00:03.6]} 56. Rxa5 {[%clk 0:00:07.1]}
56... e3 {[%clk 0:00:03.9]} 57. fxe3 {[%clk 0:00:04.7]} 57... Kxe3 {[%clk
0:00:04.8]} 58. Re5+ {[%clk 0:00:03.8]} 58... Kf4 {[%clk 0:00:04.7]} 59. Re8
{[%clk 0:00:03.7]} 59... Kg4 {[%clk 0:00:02.5]} 0-1

[Event "Late-Titled-Tuesday-Blitz-July-09-2024"]
[Site "Chess.com"]
[Date "2024.07.09"]
[Round "6"]
[White "Bykov_Egor"]
[Black "KevinGeorgeMicheal"]
[Result "0-1"]
[WhiteElo "2680"]
[BlackElo "2558"]
[TimeControl "180+1"]
[EndTime "15:06:11 PDT"]
[Termination "KevinGeorgeMicheal won by checkmate"]

1. Nf3 {[%clk 0:03:00.9]} 1... Nf6 {[%clk 0:02:57.1]} 2. g3 {[%clk 0:03:01.2]}
2... g6 {[%clk 0:02:55.5]} 3. Bg2 {[%clk 0:03:01.6]} 3... Bg7 {[%clk 0:02:56.2]}
4. O-O {[%clk 0:03:02.2]} 4... O-O {[%clk 0:02:56.9]} 5. d4 {[%clk 0:03:02.8]}
5... d5 {[%clk 0:02:56.8]} 6. c4 {[%clk 0:03:03]} 6... c6 {[%clk 0:02:57]} 7.
Qb3 {[%clk 0:03:03.4]} 7... Qb6 {[%clk 0:02:56.4]} 8. Nc3 {[%clk 0:03:03.8]}
8... dxc4 {[%clk 0:02:49.5]} 9. Qxc4 {[%clk 0:03:01.6]} 9... Be6 {[%clk
0:02:49.2]} 10. Qd3 {[%clk 0:02:56.6]} 10... Rd8 {[%clk 0:02:47.6]} 11. e4
{[%clk 0:02:54.5]} 11... Na6 {[%clk 0:02:45]} 12. b3 {[%clk 0:02:30.2]} 12...
Nb4 {[%clk 0:02:38.6]} 13. Qe2 {[%clk 0:02:30.2]} 13... a5 {[%clk 0:02:20]} 14.
Be3 {[%clk 0:02:26.1]} 14... Qa6 {[%clk 0:02:19]} 15. Qb2 {[%clk 0:02:03.6]}
15... Ng4 {[%clk 0:02:14.3]} 16. Bg5 {[%clk 0:01:54]} 16... Nd3 {[%clk
0:01:39.8]} 17. Qc2 {[%clk 0:01:34.8]} 17... f6 {[%clk 0:01:27.2]} 18. Bd2
{[%clk 0:01:30.7]} 18... Nb4 {[%clk 0:01:18.1]} 19. Qb2 {[%clk 0:01:22.2]} 19...
Nd3 {[%clk 0:01:17.8]} 20. Qa3 {[%clk 0:01:21.1]} 20... Nb4 {[%clk 0:01:12.6]}
21. Rfc1 {[%clk 0:00:58.2]} 21... b5 {[%clk 0:01:07.4]} 22. Bf1 {[%clk
0:00:54.1]} 22... Qb7 {[%clk 0:01:00]} 23. h3 {[%clk 0:00:51.3]} 23... Nh6
{[%clk 0:00:59]} 24. Qb2 {[%clk 0:00:42.9]} 24... f5 {[%clk 0:00:54.4]} 25. e5
{[%clk 0:00:36.9]} 25... Nf7 {[%clk 0:00:41.6]} 26. Ne2 {[%clk 0:00:31.3]} 26...
Nd3 {[%clk 0:00:40]} 27. Qc2 {[%clk 0:00:29.3]} 27... Nxc1 {[%clk 0:00:39.9]}
28. Rxc1 {[%clk 0:00:30.2]} 28... Bd5 {[%clk 0:00:39.2]} 29. Bg2 {[%clk
0:00:30.4]} 29... c5 {[%clk 0:00:37.4]} 30. Ne1 {[%clk 0:00:20.1]} 30... Bxg2
{[%clk 0:00:35.5]} 31. Nxg2 {[%clk 0:00:21]} 31... cxd4 {[%clk 0:00:35.9]} 32.
e6 {[%clk 0:00:21.4]} 32... Ne5 {[%clk 0:00:35.2]} 33. Qd1 {[%clk 0:00:16.3]}
33... Qe4 {[%clk 0:00:31.2]} 34. Rc7 {[%clk 0:00:12.8]} 34... Nf3+ {[%clk
0:00:28.9]} 35. Kh1 {[%clk 0:00:13.2]} 35... Qxe6 {[%clk 0:00:29]} 36. Nef4
{[%clk 0:00:12.5]} 36... Qe4 {[%clk 0:00:27.9]} 37. Bc1 {[%clk 0:00:08.5]} 37...
d3 {[%clk 0:00:25.4]} 38. Be3 {[%clk 0:00:03.4]} 38... Rac8 {[%clk 0:00:21.5]}
39. Bb6 {[%clk 0:00:02.4]} 39... Rxc7 {[%clk 0:00:21.3]} 40. Bxc7 {[%clk
0:00:03.3]} 40... Rd7 {[%clk 0:00:21.8]} 41. Bxa5 {[%clk 0:00:03.5]} 41... d2
{[%clk 0:00:22.1]} 42. g4 {[%clk 0:00:01.9]} 42... Ne1 {[%clk 0:00:21.6]} 43.
Kh2 {[%clk 0:00:01]} 43... Nxg2 {[%clk 0:00:21.3]} 44. Nxg2 {[%clk 0:00:01.9]}
44... Be5+ {[%clk 0:00:21.6]} 45. Kg1 {[%clk 0:00:02.2]} 45... b4 {[%clk
0:00:18.7]} 46. gxf5 {[%clk 0:00:02.5]} 46... Qxf5 {[%clk 0:00:18.4]} 47. Ne3
{[%clk 0:00:03.2]} 47... Qxh3 {[%clk 0:00:17.9]} 48. Bxb4 {[%clk 0:00:02.9]}
48... Qh2+ {[%clk 0:00:17.2]} 49. Kf1 {[%clk 0:00:03.2]} 49... Bf4 {[%clk
0:00:15]} 50. Ke2 {[%clk 0:00:02.6]} 50... Bxe3 {[%clk 0:00:14.2]} 51. Kxe3
{[%clk 0:00:01.8]} 51... Qe5+ {[%clk 0:00:14.8]} 52. Kf3 {[%clk 0:00:02.4]}
52... Rd3+ {[%clk 0:00:14.2]} 53. Kg2 {[%clk 0:00:02.6]} 53... Qd5+ {[%clk
0:00:14.1]} 54. Kg1 {[%clk 0:00:02.4]} 54... Qe4 {[%clk 0:00:12.3]} 55. Bxd2
{[%clk 0:00:02.7]} 55... Qd4 {[%clk 0:00:12.1]} 56. Qe2 {[%clk 0:00:02.6]} 56...
Rxd2 {[%clk 0:00:11.1]} 57. Qxe7 {[%clk 0:00:01.6]} 57... Qxf2+ {[%clk
0:00:10.7]} 58. Kh1 {[%clk 0:00:01.8]} 58... Qh2# {[%clk 0:00:11.3]} 0-1

[Event "Late-Titled-Tuesday-Blitz-July-09-2024"]
[Site "Chess.com"]
[Date "2024.07.09"]
[Round "6"]
[White "honestgames"]
[Black "HaryKane"]
[Result "0-1"]
[WhiteElo "2808"]
[BlackElo "2589"]
[TimeControl "180+1"]
[EndTime "15:06:22 PDT"]
[Termination "HaryKane won by resignation"]

1. e4 {[%clk 0:03:00.9]} 1... c5 {[%clk 0:02:59.4]} 2. Nf3 {[%clk 0:03:00.6]}
2... Nc6 {[%clk 0:02:59.7]} 3. d4 {[%clk 0:03:00.5]} 3... cxd4 {[%clk
0:03:00.6]} 4. Nxd4 {[%clk 0:03:01.2]} 4... g6 {[%clk 0:02:52.5]} 5. c4 {[%clk
0:03:00.9]} 5... Bg7 {[%clk 0:02:52.6]} 6. Be3 {[%clk 0:03:01.5]} 6... Nf6
{[%clk 0:02:46.6]} 7. Nc3 {[%clk 0:03:01.4]} 7... Ng4 {[%clk 0:02:41.1]} 8. Qxg4
{[%clk 0:03:01.2]} 8... Nxd4 {[%clk 0:02:40.9]} 9. Qd1 {[%clk 0:03:01.4]} 9...
e5 {[%clk 0:02:35.5]} 10. Bd3 {[%clk 0:02:57.3]} 10... O-O {[%clk 0:02:34.2]}
11. O-O {[%clk 0:02:57.5]} 11... a6 {[%clk 0:02:27.5]} 12. Ne2 {[%clk 0:02:38]}
12... d6 {[%clk 0:02:18.8]} 13. Nxd4 {[%clk 0:02:34.1]} 13... exd4 {[%clk
0:02:18.8]} 14. Bd2 {[%clk 0:02:32.7]} 14... Be6 {[%clk 0:02:09.8]} 15. f4
{[%clk 0:02:23.1]} 15... f5 {[%clk 0:02:09.7]} 16. exf5 {[%clk 0:02:20.3]} 16...
Bxf5 {[%clk 0:02:10.6]} 17. Qf3 {[%clk 0:02:19]} 17... Qb6 {[%clk 0:02:06]} 18.
b3 {[%clk 0:02:09.5]} 18... Rae8 {[%clk 0:02:05.5]} 19. Rae1 {[%clk 0:01:54.9]}
19... Re3 {[%clk 0:01:50.6]} 20. Bxe3 {[%clk 0:01:50.9]} 20... Bxd3 {[%clk
0:01:50.3]} 21. Bd2 {[%clk 0:01:36.5]} 21... Bxf1 {[%clk 0:01:49.5]} 22. Qd5+
{[%clk 0:01:33.9]} 22... Kh8 {[%clk 0:01:46.9]} 23. Kxf1 {[%clk 0:01:34.6]}
23... h6 {[%clk 0:01:39.6]} 24. Re6 {[%clk 0:01:33.3]} 24... Qd8 {[%clk
0:01:29.3]} 25. g3 {[%clk 0:01:25.7]} 25... g5 {[%clk 0:00:55]} 26. Kg2 {[%clk
0:01:25.6]} 26... Qd7 {[%clk 0:00:52.1]} 27. Rxd6 {[%clk 0:01:13.8]} 27... Qe8
{[%clk 0:00:48.2]} 28. Qe6 {[%clk 0:01:06.6]} 28... Qh5 {[%clk 0:00:47.2]} 29.
Rd7 {[%clk 0:00:55.3]} 29... Qd1 {[%clk 0:00:43.2]} 30. Bb4 {[%clk 0:00:46.3]}
30... Rg8 {[%clk 0:00:21.6]} 31. fxg5 {[%clk 0:00:26.2]} 31... Qc2+ {[%clk
0:00:18]} 32. Kh3 {[%clk 0:00:25.8]} 32... hxg5 {[%clk 0:00:17]} 33. Bc5 {[%clk
0:00:09.2]} 33... Qh7+ {[%clk 0:00:15]} 34. Kg4 {[%clk 0:00:08.9]} 34... Qd3
{[%clk 0:00:07.6]} 35. Bd6 {[%clk 0:00:04.7]} 35... Qd1+ {[%clk 0:00:07.5]} 36.
Kh3 {[%clk 0:00:03.5]} 36... g4+ {[%clk 0:00:04.1]} 37. Qxg4 {[%clk 0:00:03]}
37... Qf1+ {[%clk 0:00:03.7]} 38. Kh4 {[%clk 0:00:03.3]} 38... Bf6+ {[%clk
0:00:04.4]} 39. Kh5 {[%clk 0:00:03.6]} 39... Rxg4 {[%clk 0:00:04.2]} 40. Kxg4
{[%clk 0:00:03.9]} 40... Qe2+ {[%clk 0:00:04.1]} 41. Kf5 {[%clk 0:00:04.2]}
41... Bg7 {[%clk 0:00:04.2]} 42. Bf4 {[%clk 0:00:03.3]} 42... Qd3+ {[%clk
0:00:03.9]} 43. Ke6 {[%clk 0:00:03.1]} 43... Qe4+ {[%clk 0:00:04.3]} 44. Kf7
{[%clk 0:00:02.7]} 44... Qf5+ {[%clk 0:00:04.5]} 45. Ke8 {[%clk 0:00:02.8]}
45... Qe6+ {[%clk 0:00:04.8]} 46. Kd8 {[%clk 0:00:03.3]} 46... Bf6+ {[%clk
0:00:04.5]} 47. Kc8 {[%clk 0:00:03.6]} 47... Qe8+ {[%clk 0:00:04]} 48. Kc7
{[%clk 0:00:03.5]} 48... Be5+ {[%clk 0:00:04.5]} 49. Bxe5+ {[%clk 0:00:02.8]}
49... Qxe5+ {[%clk 0:00:05.4]} 50. Kxb7 {[%clk 0:00:03.4]} 50... Qe4+ {[%clk
0:00:04.5]} 51. Kb6 {[%clk 0:00:03.4]} 51... d3 {[%clk 0:00:04.9]} 52. c5 {[%clk
0:00:03.3]} 52... Qb4+ {[%clk 0:00:04.5]} 53. Kc6 {[%clk 0:00:03]} 53... Qb5+
{[%clk 0:00:04.9]} 54. Kd6 {[%clk 0:00:02.3]} 54... d2 {[%clk 0:00:05.3]} 55.
Rd8+ {[%clk 0:00:02.6]} 55... Kh7 {[%clk 0:00:05.1]} 56. Ke6 {[%clk 0:00:02.5]}
56... Qc6+ {[%clk 0:00:05.1]} 57. Rd6 {[%clk 0:00:02]} 57... Qxd6+ {[%clk
0:00:04.3]} 58. cxd6 {[%clk 0:00:01.7]} 58... d1=Q {[%clk 0:00:05.2]} 59. d7
{[%clk 0:00:02.3]} 59... Kg7 {[%clk 0:00:05.2]} 60. Ke7 {[%clk 0:00:02.5]} 60...
Qe2+ {[%clk 0:00:05.5]} 61. Kd6 {[%clk 0:00:02.7]} 61... Qd3+ {[%clk 0:00:04.9]}
62. Kc7 {[%clk 0:00:03.2]} 62... Qc3+ {[%clk 0:00:05.2]} 63. Kb7 {[%clk
0:00:03.4]} 63... Qd4 {[%clk 0:00:04.7]} 64. Kc8 {[%clk 0:00:03.2]} 64... Qc5+
{[%clk 0:00:04.9]} 65. Kb7 {[%clk 0:00:03.6]} 65... Qd6 {[%clk 0:00:04.4]} 66.
Kc8 {[%clk 0:00:03.7]} 66... Qc6+ {[%clk 0:00:04.8]} 67. Kd8 {[%clk 0:00:03.5]}
67... Kf7 {[%clk 0:00:04.5]} 68. b4 {[%clk 0:00:03.3]} 68... Ke6 {[%clk
0:00:04.7]} 0-1

[Event "Late-Titled-Tuesday-Blitz-July-09-2024"]
[Site "Chess.com"]
[Date "2024.07.09"]
[Round "6"]
[White "Zq1"]
[Black "stollenmonster"]
[Result "1-0"]
[WhiteElo "2593"]
[BlackElo "2853"]
[TimeControl "180+1"]
[EndTime "15:06:31 PDT"]
[Termination "Zq1 won by resignation"]

1. d4 {[%clk 0:03:00.9]} 1... Nf6 {[%clk 0:02:59.7]} 2. c4 {[%clk 0:02:58.4]}
2... e6 {[%clk 0:02:59.9]} 3. Nc3 {[%clk 0:02:57.2]} 3... d5 {[%clk 0:03:00.8]}
4. cxd5 {[%clk 0:02:56.1]} 4... Nxd5 {[%clk 0:03:01.7]} 5. Nf3 {[%clk
0:02:52.8]} 5... Be7 {[%clk 0:03:01.1]} 6. g3 {[%clk 0:02:52.5]} 6... b6 {[%clk
0:03:00]} 7. Bg2 {[%clk 0:02:52.3]} 7... Bb7 {[%clk 0:03:00.4]} 8. O-O {[%clk
0:02:52.1]} 8... O-O {[%clk 0:03:00.5]} 9. Qc2 {[%clk 0:02:49.8]} 9... Nd7
{[%clk 0:02:57.4]} 10. Nxd5 {[%clk 0:02:46.5]} 10... Bxd5 {[%clk 0:02:54.5]} 11.
e4 {[%clk 0:02:44.5]} 11... Bb7 {[%clk 0:02:54.4]} 12. Rd1 {[%clk 0:02:42.5]}
12... Rc8 {[%clk 0:02:51.4]} 13. Bf4 {[%clk 0:02:37.5]} 13... h6 {[%clk
0:02:40.8]} 14. d5 {[%clk 0:02:28.2]} 14... exd5 {[%clk 0:02:38.8]} 15. exd5
{[%clk 0:02:27.3]} 15... Bd6 {[%clk 0:02:38.4]} 16. Bxd6 {[%clk 0:02:19.3]}
16... cxd6 {[%clk 0:02:39.3]} 17. Qa4 {[%clk 0:02:18.4]} 17... Nc5 {[%clk
0:02:36.2]} 18. Qa3 {[%clk 0:02:17.9]} 18... a5 {[%clk 0:02:30.3]} 19. Nd4
{[%clk 0:02:16.8]} 19... Qf6 {[%clk 0:02:25.7]} 20. b4 {[%clk 0:02:12.9]} 20...
axb4 {[%clk 0:02:18]} 21. Qxb4 {[%clk 0:02:11.3]} 21... Ba8 {[%clk 0:02:12.7]}
22. Nc6 {[%clk 0:01:53.9]} 22... Rfe8 {[%clk 0:02:08.1]} 23. Qxb6 {[%clk
0:01:38.8]} 23... Re2 {[%clk 0:01:56.5]} 24. Rf1 {[%clk 0:01:38]} 24... Bxc6
{[%clk 0:00:59.1]} 25. dxc6 {[%clk 0:01:36.6]} 25... Rb2 {[%clk 0:00:59.3]} 26.
Qa7 {[%clk 0:01:21.3]} 26... Ne6 {[%clk 0:00:35.5]} 27. Rab1 {[%clk 0:01:07.8]}
27... Rc2 {[%clk 0:00:31.3]} 28. Rb8 {[%clk 0:01:02.8]} 28... Qd8 {[%clk
0:00:26.4]} 29. Rxc8 {[%clk 0:00:59.1]} 29... Qxc8 {[%clk 0:00:26.4]} 30. Qb7
{[%clk 0:00:56]} 30... Qd8 {[%clk 0:00:23.8]} 31. Qb3 {[%clk 0:00:49.8]} 31...
Rc5 {[%clk 0:00:14.9]} 32. Rd1 {[%clk 0:00:46]} 32... Nc7 {[%clk 0:00:08.8]} 33.
Qb4 {[%clk 0:00:38.4]} 33... Qe7 {[%clk 0:00:05.1]} 34. Qd4 {[%clk 0:00:38.1]}
34... d5 {[%clk 0:00:04.5]} 35. Qb4 {[%clk 0:00:30.9]} 35... Qd6 {[%clk
0:00:02.9]} 36. Qb8+ {[%clk 0:00:29]} 36... Kh7 {[%clk 0:00:03.1]} 37. Bxd5
{[%clk 0:00:26.7]} 37... Rxd5 {[%clk 0:00:01.5]} 38. Rxd5 {[%clk 0:00:25.6]}
38... Qxd5 {[%clk 0:00:02.4]} 39. Qxc7 {[%clk 0:00:25.5]} 39... Qd1+ {[%clk
0:00:03.1]} 40. Kg2 {[%clk 0:00:24.4]} 40... Qd5+ {[%clk 0:00:03.8]} 41. f3
{[%clk 0:00:24]} 41... Qxa2+ {[%clk 0:00:04.5]} 42. Kh3 {[%clk 0:00:22.2]} 42...
Qe6+ {[%clk 0:00:05.2]} 43. g4 {[%clk 0:00:21.8]} 43... Qd5 {[%clk 0:00:04.9]}
44. Kg3 {[%clk 0:00:18.5]} 44... Qd1 {[%clk 0:00:05.2]} 45. Qd7 {[%clk 0:00:14]}
45... Qg1+ {[%clk 0:00:05.5]} 46. Kf4 {[%clk 0:00:13.1]} 46... Qxh2+ {[%clk
0:00:05.6]} 47. Ke3 {[%clk 0:00:12.5]} 47... Qg1+ {[%clk 0:00:05.5]} 48. Kd3
{[%clk 0:00:11.9]} 48... Qd1+ {[%clk 0:00:05.6]} 49. Ke4 {[%clk 0:00:12.1]}
49... Qe2+ {[%clk 0:00:05.7]} 50. Kf4 {[%clk 0:00:11.4]} 50... Qh2+ {[%clk
0:00:05.5]} 51. Kf5 {[%clk 0:00:09.2]} 51... Qc2+ {[%clk 0:00:04.3]} 52. Ke5
{[%clk 0:00:08.5]} 52... Qc5+ {[%clk 0:00:04.4]} 53. Qd5 {[%clk 0:00:07.4]}
53... Qe7+ {[%clk 0:00:04.7]} 54. Kd4 {[%clk 0:00:07.1]} 54... Qb4+ {[%clk
0:00:04.9]} 55. Ke5 {[%clk 0:00:07.1]} 55... Qe7+ {[%clk 0:00:05.1]} 56. Kf4
{[%clk 0:00:07.3]} 56... Qc7+ {[%clk 0:00:05.3]} 57. Ke4 {[%clk 0:00:05.2]}
57... Qe7+ {[%clk 0:00:05.2]} 58. Kd3 {[%clk 0:00:05.3]} 58... Qa3+ {[%clk
0:00:05.3]} 59. Kc4 {[%clk 0:00:05.5]} 59... Qa2+ {[%clk 0:00:05.5]} 60. Kc5
{[%clk 0:00:05.4]} 60... Qa3+ {[%clk 0:00:05.9]} 61. Kb6 {[%clk 0:00:04.8]}
61... Qb4+ {[%clk 0:00:06.4]} 62. Ka7 {[%clk 0:00:04.3]} 62... Qa3+ {[%clk
0:00:06]} 63. Kb7 {[%clk 0:00:03.9]} 63... Qe7+ {[%clk 0:00:05.7]} 64. c7 {[%clk
0:00:03.3]} 64... Qb4+ {[%clk 0:00:05.7]} 65. Kc8 {[%clk 0:00:03]} 65... Qf8+
{[%clk 0:00:05.5]} 66. Kd7 {[%clk 0:00:03.1]} 66... f5 {[%clk 0:00:05.2]} 67.
Qxf5+ {[%clk 0:00:02.8]} 67... Qxf5+ {[%clk 0:00:03.9]} 68. gxf5 {[%clk
0:00:03.4]} 68... h5 {[%clk 0:00:04.5]} 69. c8=Q {[%clk 0:00:03.8]} 69... Kh6
{[%clk 0:00:05.4]} 70. Qe8 {[%clk 0:00:04.1]} 70... Kg5 {[%clk 0:00:06.3]} 71.
Qg6+ {[%clk 0:00:04.7]} 71... Kf4 {[%clk 0:00:07.2]} 72. Qxg7 {[%clk 0:00:05]}
72... Ke3 {[%clk 0:00:06.7]} 73. f6 {[%clk 0:00:04.9]} 1-0